fUST/lending_fUST_20250106
["ID","MTS","AMOUNT","RATE_DAILY","PERIOD"]
[347761405,1736095842712,-500.0,0.00022841,3]
[347761407,1736095842722,-500.0,0.00022841,3]
[347761409,1736095842732,-500.0,0.00022841,3]
[347761411,1736095842742,-500.0,0.00022841,3]
[347761413,1736095842753,-500.0,0.00022841,3]
[347761415,1736095842763,-1770.0,0.00022841,3]
[347761417,1736095842773,-1770.0,0.00022841,3]
[347761419,1736095842783,-1770.0,0.00022841,3]
[347761431,1736095842902,-1770.0,0.00022841,3]
[347761433,1736095842913,-500.0,0.00022841,3]
[347761435,1736095842923,-1770.0,0.00022841,3]
[347761437,1736095842933,-1770.0,0.00022841,3]
[347761439,1736095842942,-500.0,0.00022841,3]
[347761441,1736095842951,-1770.0,0.00022841,3]
[347761443,1736095842961,-187083.68354067,0.00022842,5]
[347761453,1736095843058,-31205.78016909,0.00022842,5]
[347761455,1736095843070,-8468.24142262,0.00022842,5]
[347761498,1736095843515,-500.0,0.00021359,3]
[347761500,1736095843525,-500.0,0.00021631,3]
[347761502,1736095843534,-312.28010703,0.00021631,2]
[347761504,1736095843544,-500.0,0.00021905,3]
[347761506,1736095843553,-500.0,0.00022179,3]
[347761508,1736095843562,-463.37,0.00022453,3]
[347761509,1736095843572,-530.4,0.00022457,3]
[347761511,1736095843582,-1770.0,0.00022841,3]
[347761513,1736095843591,-1770.0,0.00022841,3]
[347761515,1736095843601,-1770.0,0.00022841,3]
[347761517,1736095843611,-1770.0,0.00022841,3]
[347761519,1736095843620,-952.86773436,0.00022841,3]
[347761521,1736095843632,-446.20833079,0.00022841,3]
[347761523,1736095843652,-500.0,0.00021358,3]
[347761525,1736095843661,-500.0,0.00021632,3]
[347761527,1736095843671,-370.92393485,0.00022841,3]
[347761529,1736095843681,-1770.0,0.00022841,3]
[347761531,1736095843690,-500.0,0.00022841,3]
[347761532,1736095843700,-1770.0,0.00022841,3]
[347761534,1736095843709,-21099.66718868,0.00022842,5]
[347761537,1736095843721,-2039.815489,0.00022842,5]
[347761545,1736095843795,-291.05,0.00021906,3]
[347761546,1736095843807,-68788.49281843,0.00022842,5]
[347761549,1736095843822,-500.26421855,0.00022842,5]
[347761551,1736095843834,-11795.30203792,0.00022842,5]
[347765835,1736096586314,165.221911,0.00013973,2]
[347765838,1736096811132,-159.89239171,0.00019633,2]
[347765839,1736096811153,-13.03911599,0.00019831,2]
[347765842,1736096848097,-147.39497101,0.00019831,2]
[347765843,1736096848119,-4438.0,0.00020624,2]
[347765844,1736096848139,-431.21,0.000208,2]
[347765845,1736096848160,-3000.0,0.00021,2]
[347765846,1736096848183,-300.0,0.00021009,2]
[347765847,1736096848204,-3000.0,0.0002101,2]
[347765848,1736096848224,-3000.0,0.0002102,2]
[347765849,1736096848245,-3000.0,0.0002103,2]
[347765850,1736096848268,-500.0,0.00021039,3]
[347765851,1736096848290,-500.0,0.00021039,3]
[347765852,1736096848311,-504.54,0.00021039,3]
[347765853,1736096848334,-500.0,0.00021039,3]
[347765854,1736096848357,-955.86,0.00021039,3]
[347765855,1736096848381,-500.0,0.00021039,3]
[347765856,1736096848405,-741.82,0.00021039,3]
[347765857,1736096848427,-3000.0,0.0002104,2]
[347765858,1736096848448,-3000.0,0.0002105,2]
[347765859,1736096848470,-500.0,0.00021059,3]
[347765860,1736096848492,-500.0,0.00021059,3]
[347765861,1736096848514,-502.83682166,0.00021059,3]
[347765862,1736096848534,-500.84179988,0.00021059,3]
[347765863,1736096848554,-500.0,0.00021059,3]
[347765864,1736096848574,-500.0,0.00021059,3]
[347765865,1736096848594,-500.0,0.00021059,3]
[347765866,1736096848615,-500.0,0.00021059,3]
[347765867,1736096848635,-500.0,0.00021059,3]
[347765868,1736096848655,-500.0,0.00021059,3]
[347765869,1736096848676,-500.0,0.00021059,3]
[347765870,1736096848696,-500.0,0.00021059,3]
[347765871,1736096848719,-500.0,0.00021059,3]
[347765872,1736096848740,-186.2986608,0.00021059,3]
[347765873,1736096848761,-523.16115206,0.00021059,3]
[347765874,1736096848782,-500.0,0.00021059,3]
[347765875,1736096848805,-500.0,0.00021059,3]
[347765876,1736096848828,-500.0,0.00021059,3]
[347765877,1736096848848,-500.0,0.00021059,3]
[347765878,1736096848870,-500.0,0.00021059,3]
[347765879,1736096848891,-500.0,0.00021059,3]
[347765880,1736096848912,-500.0,0.00021059,3]
[347765881,1736096848932,-500.0,0.00021059,3]
[347765882,1736096848952,-500.0,0.00021059,3]
[347765883,1736096848974,-541.81494978,0.00021059,3]
[347765884,1736096848994,-500.0,0.00021059,3]
[347765885,1736096849015,-621.29,0.00021059,3]
[347765886,1736096849037,-500.0,0.00021059,3]
[347765887,1736096849058,-200.0,0.00021059,3]
[347765888,1736096849079,-497.07806874,0.00021059,3]
[347765931,1736097032411,-388.09,0.00021,2]
[347765933,1736097032421,-300.0,0.00021038,2]
[347765935,1736097032431,-262.383592,0.00021039,3]
[347765939,1736097032468,-237.616408,0.00021039,3]
[347765941,1736097032477,-500.0,0.00021039,3]
[347765943,1736097032487,-501.24527207,0.00021039,3]
[347765945,1736097032496,-500.0,0.00021039,3]
[347765948,1736097032506,-500.0,0.00021039,3]
[347765950,1736097032515,-500.0,0.00021039,3]
[347765952,1736097032525,-500.0,0.00021039,3]
[347765954,1736097032534,-500.0,0.00021039,3]
[347765956,1736097032544,-201.66151118,0.00021039,3]
[347765958,1736097032556,-298.33848882,0.00021039,3]
[347765960,1736097032566,-500.0,0.00021039,3]
[347765962,1736097032575,-500.0,0.00021039,3]
[347765964,1736097032585,-500.0,0.00021039,3]
[347765966,1736097032595,-500.0,0.00021039,3]
[347765968,1736097032604,-500.0,0.00021039,3]
[347765970,1736097032614,-500.0,0.00021039,3]
[347765972,1736097032623,-562.92,0.00021039,3]
[347765974,1736097032632,-500.0,0.00021039,3]
[347765976,1736097032642,-385.27445608,0.00021039,3]
[347765979,1736097032651,-500.0,0.00021039,3]
[347765982,1736097032660,-500.0,0.00021039,3]
[347765985,1736097032670,-500.0,0.00021039,3]
[347765988,1736097032679,-500.0,0.00021039,3]
[347765991,1736097032688,-500.0,0.00021039,3]
[347765994,1736097032697,-500.0,0.00021039,3]
[347765996,1736097032706,-500.0,0.00021039,3]
[347765998,1736097032715,-500.0,0.00021039,3]
[347766000,1736097032725,-500.0,0.00021039,3]
[347766001,1736097032734,-500.0,0.00021039,3]
[347766003,1736097032743,-500.0,0.00021039,3]
[347766005,1736097032752,-500.0,0.00021039,3]
[347766007,1736097032762,-500.0,0.00021039,3]
[347766009,1736097032771,-500.0,0.00021058,3]
[347766010,1736097032780,-2.92193126,0.00021059,3]
[347766012,1736097032791,-500.0,0.00021059,3]
[347766014,1736097032800,-509.72166188,0.00021059,3]
[347766016,1736097032810,-500.0,0.00021059,3]
[347766018,1736097032819,-500.0,0.00021059,3]
[347766020,1736097032828,-500.0,0.00021059,3]
[347766021,1736097032837,-559.06,0.00021059,3]
[347766023,1736097032847,-500.0,0.00021059,3]
[347766025,1736097032856,-500.0,0.00021059,3]
[347766027,1736097032865,-501.22600146,0.00021059,3]
[347766028,1736097032874,-500.0,0.00021059,3]
[347766030,1736097032884,-500.0,0.00021059,3]
[347766032,1736097032893,-500.0,0.00021059,3]
[347766034,1736097032903,-500.0,0.00021059,3]
[347766036,1736097032912,-500.0,0.00021059,3]
[347766038,1736097032921,-500.0,0.00021059,3]
[347766040,1736097032931,-500.0,0.00021059,3]
[347766042,1736097032940,-507.59,0.00021059,3]
[347766044,1736097032951,-500.0,0.00021059,3]
[347766045,1736097032961,-500.0,0.00021059,3]
[347766047,1736097032970,-500.0,0.00021059,3]
[347766049,1736097032980,-500.0,0.00021059,3]
[347766051,1736097032989,-500.0,0.00021059,3]
[347766053,1736097032999,-500.0,0.00021059,3]
[347766054,1736097033009,-500.0,0.00021059,3]
[347766056,1736097033018,-524.49,0.00021059,3]
[347766058,1736097033028,-500.0,0.00021059,3]
[347766060,1736097033037,-500.0,0.00021059,3]
[347766061,1736097033047,-500.0,0.00021059,3]
[347766063,1736097033057,-500.0,0.00021059,3]
[347766065,1736097033067,-500.0,0.00021059,3]
[347766067,1736097033077,-500.60918342,0.00021059,3]
[347766068,1736097033087,-500.0,0.00021059,3]
[347766070,1736097033098,-500.0,0.00021059,3]
[347766072,1736097033108,-500.0,0.00021059,3]
[347766074,1736097033118,-500.0,0.00021059,3]
[347766076,1736097033128,-500.0,0.00021059,3]
[347766078,1736097033138,-500.0,0.00021059,3]
[347766079,1736097033149,-501.1672604,0.00021059,3]
[347766091,1736097033270,-500.0,0.00021059,3]
[347766093,1736097033281,-500.0,0.00021059,3]
[347766095,1736097033291,-504.2100526,0.00021059,3]
[347766097,1736097033301,-500.0,0.00021059,3]
[347766098,1736097033311,-502.98273978,0.00021059,3]
[347766100,1736097033321,-500.0,0.00021059,3]
[347766102,1736097033330,-500.0,0.00021059,3]
[347766104,1736097033339,-508.24971504,0.00021059,3]
[347766106,1736097033349,-504.89956428,0.00021059,3]
[347766108,1736097033361,-500.18333752,0.00021059,3]
[347766110,1736097033372,-500.0,0.00021059,3]
[347766112,1736097033382,-556.87192586,0.00021059,3]
[347766114,1736097033396,-60.07807414,0.00021059,3]
[347766116,1736097033406,-500.0,0.00021059,3]
[347766118,1736097033415,-500.0,0.00021059,3]
[347766120,1736097033425,-500.0,0.00021059,3]
[347766121,1736097033434,-500.0,0.00021059,3]
[347766123,1736097033444,-500.0,0.00021059,3]
[347766125,1736097033454,-169.67,0.00021059,3]
[347766127,1736097033463,-500.0,0.00021059,3]
[347766129,1736097033473,-500.0,0.00021059,3]
[347766131,1736097033483,-502.84563311,0.00021059,3]
[347766132,1736097033492,-501.18611852,0.00021059,3]
[347766134,1736097033502,-500.0,0.00021059,3]
[347766136,1736097033512,-500.0,0.00021059,3]
[347766138,1736097033522,-500.335395,0.00021059,3]
[347766140,1736097033531,-502.74321858,0.00021059,3]
[347766142,1736097033542,-500.0,0.00021059,3]
[347766144,1736097033551,-500.0,0.00021059,3]
[347766146,1736097033561,-500.0,0.00021059,3]
[347766148,1736097033570,-500.0,0.00021059,3]
[347766150,1736097033579,-501.17492052,0.00021059,3]
[347766151,1736097033589,-502.40989583,0.00021059,3]
[347766153,1736097033598,-500.0,0.00021059,3]
[347766155,1736097033608,-503.14092869,0.00021059,3]
[347766157,1736097033617,-500.0,0.00021059,3]
[347766158,1736097033627,-500.0,0.00021059,3]
[347766160,1736097033636,-500.0,0.00021059,3]
[347766162,1736097033646,-500.0,0.00021059,3]
[347766164,1736097033655,-500.0,0.00021059,3]
[347766166,1736097033665,-500.0,0.00021059,3]
[347766168,1736097033676,-503.14849776,0.00021059,3]
[347766170,1736097033686,-500.0,0.00021059,3]
[347766172,1736097033696,-500.0,0.00021059,3]
[347766174,1736097033706,-160.52386318,0.00021059,3]
[347766175,1736097033715,-500.0,0.00021059,3]
[347766177,1736097033725,-496.24086844,0.00021059,3]
[347766179,1736097033735,-500.0,0.00021059,3]
[347766181,1736097033744,-500.0,0.00021059,3]
[347766183,1736097033755,-9.41263661,0.00021059,3]
[347766185,1736097033768,-490.58736339,0.00021059,3]
[347766187,1736097033778,-500.0,0.00021059,3]
[347766189,1736097033789,-500.0,0.00021059,3]
[347766191,1736097033799,-500.0,0.00021059,3]
[347766193,1736097033809,-220.53,0.00021059,3]
[347766195,1736097033819,-500.0,0.00021059,3]
[347766197,1736097033829,-500.0,0.00021059,3]
[347766199,1736097033839,-500.0,0.00021059,3]
[347766200,1736097033849,-500.0,0.00021059,3]
[347766202,1736097033859,-500.0,0.00021059,3]
[347766204,1736097033869,-500.0,0.00021059,3]
[347766206,1736097033879,-500.0,0.00021059,3]
[347766208,1736097033889,-500.0,0.00021059,3]
[347766210,1736097033899,-500.0,0.00021059,3]
[347766212,1736097033910,-500.0,0.00021059,3]
[347766214,1736097033920,-500.0,0.00021059,3]
[347766216,1736097033930,-500.0,0.00021059,3]
[347766218,1736097033939,-23.92778319,0.00021059,3]
[347766221,1736097033965,-420.96590101,0.00021059,3]
[347766223,1736097033976,-500.0,0.00021059,3]
[347766225,1736097033986,-500.0,0.00021059,3]
[347766227,1736097033996,-500.0,0.00021059,3]
[347766229,1736097034006,-425.50987298,0.00021059,3]
[347766231,1736097034018,-74.49012702,0.00021059,3]
[347766233,1736097034028,-500.0,0.00021059,3]
[347766234,1736097034037,-500.0,0.00021059,3]
[347766236,1736097034047,-500.0,0.00021059,3]
[347766238,1736097034057,-500.0,0.00021059,3]
[347766240,1736097034067,-500.84007892,0.00021059,3]
[347766242,1736097034077,-500.0,0.00021059,3]
[347766244,1736097034086,-500.0,0.00021059,3]
[347766246,1736097034096,-500.84584908,0.00021059,3]
[347766247,1736097034106,-283.21228128,0.00021059,3]
[347766256,1736097034192,-216.78771872,0.00021059,3]
[347766258,1736097034203,-500.0,0.00021059,3]
[347766260,1736097034213,-500.0,0.00021059,3]
[347766262,1736097034223,-500.0,0.00021059,3]
[347766264,1736097034232,-627.75794801,0.00021059,3]
[347766265,1736097034242,-500.0,0.00021059,3]
[347766267,1736097034251,-501.58592017,0.00021059,3]
[347766269,1736097034261,-500.0,0.00021059,3]
[347766271,1736097034271,-500.0,0.00021059,3]
[347766273,1736097034283,-500.0,0.00021059,3]
[347766276,1736097034297,-207.93481199,0.00021059,3]
[347766278,1736097034310,-500.0,0.00021059,3]
[347766280,1736097034324,-500.0,0.00021059,3]
[347766282,1736097034337,-500.0,0.00021059,3]
[347766284,1736097034349,-500.0,0.00021059,3]
[347766286,1736097034360,-500.0,0.00021059,3]
[347766289,1736097034374,-500.0,0.00021059,3]
[347766291,1736097034388,-500.0,0.00021059,3]
[347766293,1736097034400,-500.0,0.00021059,3]
[347766295,1736097034412,-500.0,0.00021059,3]
[347766297,1736097034424,-500.0,0.00021059,3]
[347766299,1736097034436,-500.0,0.00021059,3]
[347766301,1736097034448,-500.0,0.00021059,3]
[347766303,1736097034460,-500.0,0.00021059,3]
[347766306,1736097034473,-500.0,0.00021059,3]
[347766308,1736097034484,-500.0,0.00021059,3]
[347766310,1736097034496,-502.85349271,0.00021059,3]
[347766312,1736097034510,-500.0,0.00021059,3]
[347766314,1736097034521,-3137.67864549,0.00021059,3]
[347766316,1736097034536,-3347.06135451,0.00021059,3]
[347766318,1736097034548,-500.0,0.00021059,3]
[347766320,1736097034561,-500.0,0.00021059,3]
[347766322,1736097034572,-500.0,0.00021059,3]
[347766325,1736097034583,-500.0,0.00021059,3]
[347766327,1736097034595,-501.79322682,0.00021059,3]
[347766329,1736097034606,-500.0,0.00021059,3]
[347766331,1736097034619,-500.0,0.00021059,3]
[347766333,1736097034630,-500.0,0.00021059,3]
[347766335,1736097034641,-502.63939165,0.00021059,3]
[347766337,1736097034651,-500.0,0.00021059,3]
[347766339,1736097034662,-500.0,0.00021059,3]
[347766341,1736097034671,-500.0,0.00021059,3]
[347766343,1736097034682,-500.69750906,0.00021059,3]
[347766345,1736097034693,-500.0,0.00021059,3]
[347766347,1736097034704,-500.0,0.00021059,3]
[347766349,1736097034715,-500.0,0.00021059,3]
[347766351,1736097034727,-500.0,0.00021059,3]
[347766353,1736097034738,-500.0,0.00021059,3]
[347766355,1736097034750,-500.0,0.00021059,3]
[347766357,1736097034761,-500.0,0.00021059,3]
[347766359,1736097034773,-500.0,0.00021059,3]
[347766361,1736097034784,-500.0,0.00021059,3]
[347766363,1736097034797,-500.0,0.00021059,3]
[347766366,1736097034809,-500.0,0.00021059,3]
[347766368,1736097034821,-500.0,0.00021059,3]
[347766370,1736097034834,-510.65640265,0.00021059,3]
[347766372,1736097034845,-500.0,0.00021059,3]
[347766374,1736097034855,-501.65321996,0.00021059,3]
[347766376,1736097034865,-500.0,0.00021059,3]
[347766378,1736097034875,-500.0,0.00021059,3]
[347766380,1736097034886,-500.0,0.00021059,3]
[347766382,1736097034897,-500.93232124,0.00021059,3]
[347766384,1736097034910,-500.54472092,0.00021059,3]
[347766386,1736097034922,-500.0,0.00021059,3]
[347766389,1736097034935,-500.0,0.00021059,3]
[347766391,1736097034946,-500.94065274,0.00021059,3]
[347766393,1736097034956,-500.40160064,0.00021059,3]
[347766395,1736097034966,-500.0,0.00021059,3]
[347766397,1736097034977,-500.0,0.00021059,3]
[347766399,1736097034987,-502.53994236,0.00021059,3]
[347766401,1736097034998,-500.0,0.00021059,3]
[347766403,1736097035009,-500.0,0.00021059,3]
[347766405,1736097035021,-500.0,0.00021059,3]
[347766407,1736097035031,-500.0,0.00021059,3]
[347766409,1736097035043,-500.0,0.00021059,3]
[347766411,1736097035055,-275.57068254,0.00021059,3]
[347766413,1736097035066,-500.0,0.00021059,3]
[347766415,1736097035076,-500.0,0.00021059,3]
[347766417,1736097035086,-500.0,0.00021059,3]
[347766419,1736097035096,-500.97345841,0.00021059,3]
[347766421,1736097035108,-500.0,0.00021059,3]
[347766423,1736097035118,-500.0,0.00021059,3]
[347766425,1736097035129,-504.62245921,0.00021059,3]
[347766427,1736097035139,-500.0,0.00021059,3]
[347766429,1736097035150,-500.0,0.00021059,3]
[347766431,1736097035160,-500.0,0.00021059,3]
[347766433,1736097035171,-500.0,0.00021059,3]
[347766435,1736097035181,-500.0,0.00021059,3]
[347766437,1736097035192,-500.0,0.00021059,3]
[347766439,1736097035203,-500.0,0.00021059,3]
[347766441,1736097035214,-500.0,0.00021059,3]
[347766443,1736097035225,-500.68518524,0.00021059,3]
[347766446,1736097035236,-203.64483502,0.00021059,3]
[347766448,1736097035247,-500.0,0.00021059,3]
[347766449,1736097035258,-500.0,0.00021059,3]
[347766452,1736097035268,-500.0,0.00021059,3]
[347766454,1736097035279,-526.34214423,0.00021059,3]
[347766455,1736097035290,-500.0,0.00021059,3]
[347766458,1736097035301,-500.0,0.00021059,3]
[347766460,1736097035311,-500.0,0.00021059,3]
[347766461,1736097035321,-500.0,0.00021059,3]
[347766464,1736097035332,-500.0,0.00021059,3]
[347766466,1736097035343,-500.0,0.00021059,3]
[347766468,1736097035354,-3000.0,0.0002106,2]
[347766470,1736097035366,-250.0,0.0002106,2]
[347766472,1736097035378,-5999.373157,0.0002107,2]
[347766474,1736097035390,-362.92111335,0.00021073,2]
[347766476,1736097035400,-165.221911,0.00021209,2]
[347766478,1736097035411,-187.587171,0.00021302,2]
[347766480,1736097035421,-955.86,0.00021313,3]
[347766482,1736097035432,-741.82,0.00021313,3]
[347766484,1736097035443,-500.0,0.00021313,3]
[347766486,1736097035453,-500.0,0.00021313,3]
[347766488,1736097035464,-500.0,0.00021313,3]
[347766490,1736097035475,-500.0,0.00021313,3]
[347766492,1736097035486,-500.0,0.00021313,3]
[347766494,1736097035497,-500.0,0.00021313,3]
[347766496,1736097035508,-500.0,0.00021313,3]
[347766498,1736097035519,-500.0,0.00021313,3]
[347766500,1736097035530,-500.0,0.00021313,3]
[347766514,1736097035661,-500.0,0.00021313,3]
[347766516,1736097035671,-500.0,0.00021313,3]
[347766518,1736097035680,-500.0,0.00021332,3]
[347766520,1736097035690,-199.79,0.00021333,3]
[347766521,1736097035699,-265.4,0.00021333,2]
[347766522,1736097035709,-500.0,0.00021333,3]
[347766523,1736097035718,-222.21,0.00021333,3]
[347766524,1736097035728,-500.0,0.00021333,3]
[347766525,1736097035738,-270.96000238,0.00021333,3]
[347766526,1736097035748,-500.0,0.00021333,3]
[347766527,1736097035757,-500.0,0.00021333,3]
[347766528,1736097035768,-500.0,0.00021333,3]
[347766529,1736097035777,-500.0,0.00021333,3]
[347766530,1736097035786,-500.0,0.00021333,3]
[347766531,1736097035797,-500.0,0.00021333,3]
[347766532,1736097035806,-500.0,0.00021333,3]
[347766533,1736097035816,-500.0,0.00021333,3]
[347766534,1736097035826,-500.0,0.00021333,3]
[347766535,1736097035835,-355.61,0.00021333,3]
[347766536,1736097035844,-500.0,0.00021333,3]
[347766537,1736097035853,-500.0,0.00021333,3]
[347766538,1736097035862,-500.0,0.00021333,3]
[347766539,1736097035872,-500.0,0.00021333,3]
[347766540,1736097035881,-156.65,0.00021333,3]
[347766541,1736097035890,-500.0,0.00021333,3]
[347766542,1736097035899,-500.0,0.00021333,3]
[347766543,1736097035908,-214.61,0.00021333,3]
[347766544,1736097035917,-500.0,0.00021333,3]
[347766545,1736097035927,-544.32,0.00021333,3]
[347766546,1736097035936,-6484.74,0.00021333,3]
[347766547,1736097035945,-500.0,0.00021333,3]
[347766548,1736097035954,-500.0,0.00021333,3]
[347766549,1736097035963,-218.24972065,0.00021333,3]
[347766550,1736097035971,-500.0,0.00021333,3]
[347766551,1736097035979,-500.0,0.00021333,3]
[347766552,1736097035988,-500.0,0.00021333,3]
[347766553,1736097035998,-500.0,0.00021333,3]
[347766554,1736097036008,-500.0,0.00021333,3]
[347766555,1736097036017,-477.74748275,0.00021333,3]
[347766556,1736097036026,-500.0,0.00021333,3]
[347766557,1736097036036,-500.0,0.00021333,3]
[347766558,1736097036046,-500.0,0.00021333,3]
[347766559,1736097036056,-500.0,0.00021333,3]
[347766560,1736097036067,-477.00644524,0.00021333,3]
[347766562,1736097036076,-500.0,0.00021333,3]
[347766563,1736097036085,-500.0,0.00021333,3]
[347766564,1736097036094,-500.0,0.00021333,3]
[347766566,1736097036105,-500.0,0.00021333,3]
[347766567,1736097036113,-517.53,0.00021333,3]
[347766569,1736097036123,-500.0,0.00021356,3]
[347766572,1736097036133,-500.0,0.00021356,3]
[347766574,1736097036142,-500.0,0.00021356,3]
[347766575,1736097036152,-428.0674846,0.00021356,3]
[347766577,1736097036162,-500.0,0.00021356,3]
[347766579,1736097036173,-500.0,0.00021356,3]
[347766582,1736097036183,-500.0,0.00021356,3]
[347766583,1736097036192,-549.46415469,0.00021356,3]
[347766586,1736097036202,-500.0,0.00021356,3]
[347766587,1736097036211,-500.0,0.00021356,3]
[347766590,1736097036220,-500.0,0.00021356,3]
[347766591,1736097036230,-500.0,0.00021356,3]
[347766594,1736097036241,-500.0,0.00021356,3]
[347766596,1736097036250,-500.0,0.00021356,3]
[347766598,1736097036259,-500.0,0.00021357,3]
[347766600,1736097036268,-500.0,0.00021357,3]
[347766602,1736097036277,-500.0,0.00021357,3]
[347766603,1736097036286,-3.1918953,0.00021357,3]
[347766828,1736097038373,-502.62472915,0.00021059,3]
[347766830,1736097038383,-500.0,0.00021059,3]
[347766832,1736097038393,-111.16484696,0.00021333,3]
[347766837,1736097038430,-531.82515304,0.00021333,3]
[347766839,1736097038440,-496.8081047,0.00021357,3]
[347766841,1736097038449,-500.0,0.00021357,3]
[347766843,1736097038459,-502.80457149,0.00021357,3]
[347766845,1736097038468,-500.0,0.00021357,3]
[347766847,1736097038477,-500.0,0.00021357,3]
[347766849,1736097038486,-579.82469606,0.00021357,3]
[347766852,1736097038496,-500.0,0.00021357,3]
[347766855,1736097038505,-328.39765655,0.00021357,3]
[347766901,1736097038897,-171.60234345,0.00021357,3]
[347766903,1736097038907,-500.0,0.00021357,3]
[347766905,1736097038916,-500.0,0.00021357,3]
[347766907,1736097038925,-500.0,0.00021357,3]
[347766909,1736097038935,-500.0,0.00021357,3]
[347766911,1736097038944,-500.0,0.00021357,3]
[347766913,1736097038954,-543.06763891,0.00021357,3]
[347766914,1736097038963,-500.0,0.00021357,3]
[347766916,1736097038973,-500.0,0.00021357,3]
[347766918,1736097038982,-500.0,0.00021357,3]
[347766920,1736097038992,-500.0,0.00021357,3]
[347766923,1736097039002,-500.0,0.00021357,3]
[347766925,1736097039011,-462.51504176,0.00021357,3]
[347766927,1736097039023,-37.48495824,0.00021357,3]
[347766929,1736097039032,-500.85039201,0.00021357,3]
[347766931,1736097039041,-500.0,0.00021357,3]
[347766933,1736097039058,-500.0,0.00021357,3]
[347766935,1736097039068,-500.0,0.00021357,3]
[347766937,1736097039077,-500.0,0.00021357,3]
[347766938,1736097039087,-500.0,0.00021357,3]
[347766939,1736097039096,-500.0,0.00021357,3]
[347766940,1736097039106,-500.0,0.00021357,3]
[347766941,1736097039115,-500.0,0.00021357,3]
[347766942,1736097039125,-500.0,0.00021357,3]
[347766943,1736097039136,-500.0,0.00021357,3]
[347766944,1736097039145,-500.0,0.00021357,3]
[347766945,1736097039154,-597.52300635,0.00021357,3]
[347766946,1736097039163,-500.0,0.00021357,3]
[347766947,1736097039173,-500.0,0.00021357,3]
[347766948,1736097039182,-218.59607492,0.00021357,2]
[347766949,1736097039192,-500.56508102,0.00021357,3]
[347766950,1736097039202,-500.0,0.00021357,3]
[347766951,1736097039211,-500.0,0.00021357,3]
[347766952,1736097039220,-161.04773012,0.00021357,3]
[347766953,1736097039230,-500.0,0.00021357,3]
[347766954,1736097039239,-500.0,0.00021357,3]
[347766955,1736097039249,-500.0,0.00021357,3]
[347766957,1736097039258,-500.0,0.00021357,3]
[347766959,1736097039267,-500.0,0.00021357,3]
[347766961,1736097039277,-500.0,0.00021357,3]
[347766963,1736097039286,-500.0,0.00021357,3]
[347766965,1736097039295,-500.0,0.00021357,3]
[347766967,1736097039305,-500.0,0.00021357,3]
[347766969,1736097039314,-500.0,0.00021357,3]
[347766971,1736097039324,-500.0,0.00021357,3]
[347766973,1736097039334,-500.0,0.00021357,3]
[347766975,1736097039343,-500.0,0.00021357,3]
[347766977,1736097039353,-500.0,0.00021357,3]
[347766979,1736097039363,-500.0,0.00021357,3]
[347766981,1736097039376,-500.0,0.00021357,3]
[347766983,1736097039385,-500.0,0.00021357,3]